bitfinex/quotes_SOLUSD_20220216
["timestamp","ask_amount","ask_price","bid_price","bid_amount"]
[1644990719733,0.87697264,102.73,102.66,167.14066213]
[1644990719935,0.87697264,102.73,102.67,1.3659191]
[1644990720136,0.87697264,102.73,102.68,14.23]
[1644990720336,0.87697264,102.73,102.69,14.6002]
[1644990720536,0.87697264,102.73,102.69,38.4334]
[1644990721035,0.87697264,102.73,102.69,38.6834]
[1644990721634,7.264e-05,102.73,102.7,97.65]
[1644990721836,7.264e-05,102.73,102.71,112.2472]
[1644990722437,7.264e-05,102.73,102.71,112.4972]
[1644990722637,7.264e-05,102.73,102.71,136.5825]
[1644990722838,7.264e-05,102.73,102.71,185.3925]
[1644990726045,7.264e-05,102.73,102.71,199.6225]
[1644990726244,0.57109216,102.73,102.71,199.6225]
[1644990726543,0.57109216,102.73,102.71,214.4019]
[1644990727947,0.00014056,102.75,102.71,214.4019]
[1644990728157,1.11412456,102.78,102.73,97.65]
[1644990728353,0.06862456,102.78,102.75,97.65]
[1644990728552,0.06862456,102.78,102.76,111.88]
[1644990728753,0.06862456,102.78,102.76,160.69]
[1644990729153,0.06862456,102.78,102.76,160.94]
[1644990729353,0.06862456,102.78,102.76,77.6285]
[1644990729554,0.06862456,102.78,102.76,77.8785]
[1644990729756,0.06862456,102.78,102.74,28.35904303]
[1644990729959,0.06862456,102.78,102.74,14.23]
[1644990730154,0.06862456,102.78,102.72,47.1063]
[1644990730354,0.06862456,102.78,102.72,61.7023]
[1644990731375,0.06862456,102.78,102.72,159.3523]
[1644990732175,0.06862456,102.78,102.72,159.6023]
[1644990734184,0.20570008,102.78,102.72,61.9523]
[1644990734582,0.20570008,102.78,102.72,47.3563]
[1644990735983,0.20570008,102.78,102.72,47.1063]
[1644990736683,0.20570008,102.78,102.72,23.8244]
[1644990736983,14.80410008,102.78,102.69,38.9035]
[1644990738086,14.80410008,102.78,102.69,39.1535]
[1644990738287,14.80410008,102.78,102.69,136.8035]
[1644990739686,39.55210008,102.78,102.69,136.8035]
[1644990740587,39.55210008,102.78,102.69,39.1535]
[1644990741392,39.55210008,102.78,102.69,136.8035]
[1644990741591,39.55210008,102.78,102.69,152.20824397]
[1644990741790,39.55210008,102.78,102.69,166.43824397]
[1644990742892,39.55210008,102.78,102.7,48.81]
[1644990743091,39.55210008,102.78,102.7,49.06]
[1644990743293,39.55210008,102.78,102.7,63.6586]
[1644990743994,39.55210008,102.78,102.71,23.4396]
[1644990744196,39.55210008,102.78,102.71,23.6896]
[1644990745395,39.55210008,102.78,102.71,121.3396]
[1644990746898,39.55210008,102.78,102.71,23.6896]
[1644990747296,39.55210008,102.78,102.71,0.25]
[1644990747496,39.55210008,102.78,102.69,54.91414397]
[1644990747998,39.55210008,102.78,102.69,39.5094]
[1644990750401,39.55210008,102.78,102.69,137.1594]
[1644990756106,39.55210008,102.78,102.69,152.56414397]
[1644990756303,39.55210008,102.78,102.69,166.69304255]
[1644990756505,0.20570008,102.78,102.71,97.65]
[1644990756706,0.20570008,102.78,102.72,112.2466]
[1644990757104,0.20570008,102.78,102.72,112.4966]
[1644990758638,0.20570008,102.78,102.73,23.1644]
[1644990758838,0.20570008,102.78,102.73,37.7593]
[1644990759038,0.20570008,102.78,102.73,38.0093]
[1644990761246,0.20570008,102.78,102.73,37.7593]
[1644990762643,0.20570008,102.78,102.73,38.0093]
[1644990773052,0.20570008,102.78,102.73,37.7593]
[1644990774352,0.20570008,102.78,102.73,38.0093]
[1644990776460,0.20570008,102.78,102.73,37.7593]
[1644990778564,0.20570008,102.78,102.73,38.0093]
[1644990783367,0.20570008,102.78,102.73,37.7593]
[1644990785090,0.20570008,102.78,102.73,38.0093]
[1644990787291,14.80270008,102.78,102.73,38.0093]
[1644990794997,14.80270008,102.78,102.73,23.4144]
[1644990798302,14.80270008,102.78,102.73,23.1644]
[1644990802005,14.80270008,102.78,102.73,37.7614]
[1644990803505,14.80270008,102.78,102.73,23.1644]
[1644990806107,14.80270008,102.78,102.73,37.7614]
[1644990807311,14.80270008,102.78,102.73,23.1644]
[1644990811518,14.80270008,102.78,102.71,31.37006307]
[1644990811717,137.2153064,102.78,102.7,1.3659191]
[1644990811921,151.4453064,102.78,102.69,25.6452191]
[1644990812121,1.38160632,102.77,102.69,24.2793]
[1644990812321,14.6038,102.75,102.69,24.2793]
[1644990812523,37.1041,102.75,102.69,24.2793]
[1644990813623,37.1041,102.75,102.67,15.9705191]
[1644990813822,37.1041,102.75,102.67,24.8856191]
[1644990814022,37.1041,102.75,102.66,1.3659191]
[1644990814222,37.1041,102.75,102.66,25.1356191]
[1644990814623,37.1041,102.75,102.67,18.18010895]
[1644990816327,37.1041,102.75,102.66,38.1257]
[1644990816724,37.1041,102.75,102.66,38.3757]
[1644990821144,37.1041,102.75,102.66,38.1257]
[1644990821546,51.3341,102.75,102.66,40.51998819]
[1644990829157,51.3341,102.75,102.66,40.76998819]
[1644990839498,51.3341,102.75,102.66,42.13590729]
[1644990840298,51.3341,102.75,102.66,41.88590729]
[1644990840500,52.71570632,102.75,102.66,41.88590729]
[1644990840701,52.71570632,102.75,102.66,40.51998819]
[1644990840899,52.71570632,102.75,102.66,25.91398819]
[1644990842303,52.71570632,102.75,102.66,27.27990729]
[1644990843601,150.36570632,102.75,102.66,24.8856191]
[1644990844103,150.36570632,102.75,102.66,23.5197]
[1644990845103,1.38160632,102.74,102.66,23.5197]
[1644990845302,14.6105,102.72,102.66,23.5197]
[1644990845503,37.7315,102.72,102.66,23.5197]
[1644990845904,37.7315,102.72,102.65,475.39731845]
[1644990846503,37.7315,102.72,102.64,15.9756191]
[1644990846703,37.7315,102.72,102.64,16.2256191]
[1644990847204,37.7315,102.72,102.65,23.0178]
[1644990850610,36.7315,102.72,102.65,23.0178]
[1644990850920,36.7315,102.72,102.65,25.40002242]
[1644990852310,36.7315,102.72,102.65,23.0178]
[1644990855417,36.7315,102.72,102.65,25.40002242]
[1644990857814,36.7315,102.72,102.65,23.0178]
[1644990859220,148.6115,102.72,102.63,113.5]
[1644990860623,148.6115,102.72,102.62,24.4810191]
[1644990861724,149.99310632,102.72,102.62,23.1151]
[1644990862124,148.6115,102.72,102.62,23.1151]
[1644990862344,148.6115,102.72,102.62,26.86324152]
[1644990869261,148.6115,102.72,102.62,24.4810191]
[1644990872872,149.99310632,102.72,102.62,24.4810191]
[1644990873584,148.6115,102.72,102.62,24.4810191]
[1644990873865,149.99310632,102.72,102.62,24.4810191]
[1644990874065,50.9615,102.72,102.62,35.15128569]
[1644990874465,50.9615,102.72,102.62,161.68492824]
[1644990874665,50.9615,102.72,102.63,1.3659191]
[1644990875069,50.9615,102.72,102.64,16.98616659]
[1644990875368,50.9615,102.72,102.65,25.82766659]
[1644990875567,50.9615,102.72,102.65,26.07766659]
[1644990875767,36.7315,102.72,102.66,2.37626659]
[1644990876466,13.6105,102.72,102.66,16.98406659]
[1644990880272,13.6105,102.72,102.66,14.6078]
[1644990881171,1.38160632,102.76,102.69,14.6014]
[1644990881370,0.20570008,102.78,102.7,97.65]
[1644990881371,1.38160632,102.77,102.7,97.65]
[1644990881572,0.20570008,102.78,102.7,122.66726659]
[1644990881770,0.20570008,102.78,102.71,114.25626659]
[1644990882171,0.20570008,102.78,102.72,2.37626659]
[1644990882371,0.20570008,102.78,102.72,25.01726659]
[1644990882571,0.20570008,102.78,102.72,25.26726659]
[1644990882774,0.20570008,102.78,102.73,2.37626659]
[1644990883171,0.20570008,102.78,102.73,2.62626659]
[1644990883371,0.20570008,102.78,102.72,46.737]
[1644990883971,14.80480008,102.78,102.72,46.737]
[1644990891507,14.80480008,102.78,102.69,2.37035588]
[1644990892907,14.80480008,102.78,102.69,16.97345588]
[1644990895607,14.80480008,102.78,102.69,2.37035588]
[1644990895811,126.68480008,102.78,102.69,2.37035588]
[1644990896011,126.68480008,102.78,102.68,47.7494]
[1644990896808,128.0664064,102.78,102.68,47.7494]
[1644990897512,126.68480008,102.78,102.68,47.7494]
[1644990899010,152.8779064,102.78,102.68,47.7494]
[1644990902520,1.38160632,102.77,102.68,47.7494]
[1644990902716,14.6078,102.75,102.68,47.7494]
[1644990906627,14.6078,102.75,102.68,50.11962045]
[1644990906826,14.6078,102.75,102.68,50.36962045]
[1644990907027,14.6078,102.75,102.68,64.59962045]
[1644990907826,14.6078,102.75,102.68,79.20482045]
[1644990908026,48.88050008,102.78,102.68,79.20482045]
[1644990908027,14.6015,102.76,102.68,79.20482045]
[1644990908227,0.20570008,102.78,102.68,93.97400887]
[1644990908427,0.20570008,102.78,102.68,207.11882655]
[1644990908729,0.20570008,102.78,102.69,103.65]
[1644990908929,0.20570008,102.78,102.7,23.0242]
[1644990909131,0.20570008,102.78,102.7,25.39442045]
[1644990909329,0.20570008,102.78,102.71,2.37022045]
[1644990909732,0.20570008,102.78,102.71,2.62022045]
[1644990909931,14.80430008,102.78,102.71,17.21882045]
[1644990910329,14.80430008,102.78,102.72,2.37022045]
[1644990910727,14.80430008,102.78,102.72,2.62022045]
[1644990911127,14.80430008,102.78,102.72,0.25]
[1644990911328,14.80430008,102.78,102.7,74.05642045]
[1644990912028,14.80430008,102.78,102.72,14.5991]
[1644990913731,14.80430008,102.78,102.72,14.8491]
[1644990915631,14.80430008,102.78,102.72,17.21932045]
[1644990920738,14.80430008,102.78,102.72,16.96932045]
[1644990921143,14.80430008,102.78,102.72,114.61932045]
[1644990922144,14.80430008,102.78,102.72,114.86932045]
[1644990922366,0.20570008,102.78,102.72,114.86932045]
[1644990922565,0.20570008,102.78,102.72,138.63632045]
[1644990929473,0.20570008,102.78,102.72,138.38632045]
[1644990929672,0.20570008,102.78,102.72,40.73632045]
[1644990929872,14.80380008,102.78,102.72,40.73632045]
[1644990930474,14.80380008,102.78,102.72,38.3661]
[1644990930672,14.80380008,102.78,102.72,23.767]
[1644990933976,16.18118382,102.78,102.72,23.767]
[1644990936083,16.18118382,102.78,102.72,38.3669]
[1644990936281,14.80380008,102.78,102.72,40.73712045]
[1644990936584,14.80380008,102.78,102.72,40.98712045]
[1644990937980,0.20570008,102.78,102.72,40.98712045]
[1644990944791,14.80300008,102.78,102.72,40.98712045]
[1644990945595,0.20570008,102.78,102.72,40.98712045]
[1644990948496,0.20570008,102.78,102.72,138.63712045]
[1644990948720,0.20570008,102.78,102.73,6.0]
[1644990948913,0.20570008,102.78,102.74,14.5952]
[1644990949215,0.20570008,102.78,102.74,16.96542045]
[1644990949413,0.20570008,102.78,102.74,17.21542045]
[1644990949613,0.20570008,102.78,102.74,42.00132045]
[1644990951814,0.20570008,102.78,102.74,39.6311]
[1644990957020,0.20570008,102.78,102.74,39.3811]
[1644990959128,0.20570008,102.78,102.74,39.6311]
[1644990959328,0.20570008,102.78,102.74,39.3811]
[1644990966342,0.20570008,102.78,102.74,41.75132045]
[1644990966543,0.20570008,102.78,102.74,42.00132045]
[1644990973771,0.20570008,102.78,102.74,41.75132045]
[1644990976581,0.20570008,102.78,102.74,42.00132045]
[1644990977279,0.20570008,102.78,102.74,41.75132045]
[1644990978626,14.80290008,102.78,102.74,16.96542045]
[1644990978787,14.80290008,102.78,102.74,2.37022045]
[1644990986996,14.80290008,102.78,102.74,17.29862045]
[1644990990903,14.80290008,102.78,102.74,31.89622045]
[1644990996122,0.20570008,102.78,102.74,31.89622045]
[1644991006638,0.20570008,102.78,102.74,55.56042045]
[1644991011149,0.20570008,102.78,102.74,55.31042045]
[1644991016172,0.20570008,102.78,102.74,55.56042045]
[1644991017678,0.20570008,102.78,102.74,55.31042045]
[1644991018077,0.20570008,102.78,102.74,55.56042045]
[1644991023884,13.21240024,102.79,102.74,55.56042045]
[1644991031587,13.21240024,102.79,102.74,53.1902]
[1644991032087,13.21240024,102.79,102.74,55.56032403]
[1644991036391,13.21240024,102.79,102.74,55.31032403]
[1644991039394,13.21240024,102.79,102.74,40.38192403]
[1644991072055,0.41140016,102.79,102.74,40.38192403]
[1644991072257,0.41140016,102.79,102.74,40.63192403]
[1644991076460,0.41140016,102.79,102.74,138.28192403]
[1644991078365,0.41140016,102.79,102.74,40.63192403]
[1644991080289,0.41140016,102.79,102.74,40.38192403]
[1644991082089,0.41140016,102.79,102.74,40.63192403]
[1644991091206,0.41140016,102.79,102.74,138.28192403]
[1644991091404,0.23065142,102.8,102.76,97.65]
[1644991091608,0.23065142,102.8,102.77,14.5913]
[1644991091806,0.23065142,102.8,102.77,16.95550083]
[1644991092310,0.23065142,102.8,102.77,40.35280083]
[1644991096508,0.23065142,102.8,102.78,2.36420083]
[1644991096709,3.03219996,102.79,102.76,14.5941]
[1644991097608,14.82565142,102.8,102.76,14.5941]
[1644991098207,14.82565142,102.8,102.75,39.5649]
[1644991106151,14.82565142,102.8,102.75,14.5957]
[1644991109226,14.82565142,102.8,102.74,2.36420083]
[1644991109431,37.98345142,102.8,102.74,16.96150083]
[1644991113852,37.98345142,102.8,102.75,38.2135]
[1644991119858,37.98345142,102.8,102.75,40.57770083]
[1644991121061,14.82565142,102.8,102.75,40.57770083]
[1644991121260,0.23065142,102.8,102.75,40.82770083]
[1644991123068,0.23065142,102.8,102.75,42.18813553]
[1644991123963,0.23065142,102.8,102.75,138.47770083]
[1644991124265,0.23065142,102.8,102.75,154.62176839]
[1644991125362,0.23065142,102.8,102.75,203.43176839]
[1644991125564,0.23065142,102.8,102.75,217.56066697]
[1644991125765,0.23065142,102.8,102.77,97.65]
[1644991125965,0.00065142,102.8,102.77,126.4674]
[1644991126164,0.00065142,102.8,102.78,2.36472111]
[1644991126564,0.00065142,102.8,102.78,2.61472111]
[1644991126963,0.00065142,102.8,102.79,2.36472111]
[1644991127166,0.00065142,102.8,102.79,100.26472111]
[1644991127367,0.00065142,102.8,102.79,17.20052111]
[1644991131070,0.86606304,102.81,102.79,17.20052111]
[1644991135073,0.86606304,102.81,102.79,14.8358]
[1644991135275,0.86606304,102.81,102.8,16.95152111]
[1644991135676,0.86606304,102.81,102.8,17.20152111]
[1644991145600,0.86606304,102.81,102.8,16.95152111]
[1644991147003,0.86606304,102.81,102.8,17.20152111]
[1644991148621,0.86606304,102.81,102.8,114.85152111]
[1644991149219,0.86606304,102.81,102.8,17.20152111]
[1644991154125,0.86606304,102.81,102.8,32.14522111]
[1644991155529,0.86606304,102.81,102.8,31.89522111]
[1644991155727,0.86606304,102.81,102.8,32.14522111]
[1644991157533,3.898263,102.81,102.8,16.95152111]
[1644991157734,0.86606304,102.81,102.8,16.95152111]
[1644991161237,3.898263,102.81,102.8,16.95152111]
[1644991163735,0.86606304,102.81,102.8,16.95152111]
[1644991165440,3.898263,102.81,102.8,16.95152111]
[1644991165642,3.898263,102.81,102.8,2.36472111]
[1644991165840,0.86606304,102.81,102.8,2.36472111]
[1644991166042,0.86606304,102.81,102.79,16.95391897]
[1644991167746,0.86606304,102.81,102.8,2.36471897]
[1644991169944,0.86606304,102.81,102.78,14.5906]
[1644991169945,3.898263,102.81,102.78,16.95531897]
[1644991170146,0.86606304,102.81,102.78,2.36471897]
[1644991173967,0.86606304,102.81,102.77,14.5919]
[1644991174168,0.86606304,102.81,102.77,16.95661897]
[1644991176974,0.36606304,102.81,102.77,16.95661897]
[1644991181280,14.95836304,102.81,102.77,16.95661897]
[1644991181980,14.95836304,102.81,102.77,2.36471897]
[1644991182684,14.99805324,102.81,102.77,2.36471897]
[1644991183081,14.99805324,102.81,102.74,27.18735367]
[1644991183281,24.7,102.8,102.74,25.82691897]
[1644991183484,14.5953,102.79,102.75,14.5944]
[1644991183881,14.5953,102.79,102.75,16.95911897]
[1644991201628,14.5953,102.79,102.75,2.36471897]
[1644991202728,14.5953,102.79,102.74,38.0579]
[1644991202934,14.5953,102.79,102.74,23.4622]
[1644991208836,14.5953,102.79,102.73,2.36471897]
[1644991209042,112.2453,102.79,102.72,1.3604347]
[1644991209236,112.2453,102.79,102.69,2.72086941]
[1644991209237,23.6462,102.78,102.7,1.3604347]
[1644991209439,14.6012,102.76,102.7,1.3604347]
[1644991209636,14.6012,102.76,102.69,26.0742347]
[1644991210436,23.1732,102.75,102.7,14.6008]
[1644991211838,37.7751,102.75,102.7,14.6008]
[1644991237283,37.7751,102.75,102.7,15.9612347]
[1644991238082,37.7751,102.75,102.7,16.2112347]
[1644991253207,14.6002,102.76,102.7,16.2112347]
[1644991253408,14.6002,102.76,102.71,22.5514]
[1644991253607,23.4824,102.78,102.72,14.5986]
[1644991253809,23.4824,102.78,102.73,22.5514]
[1644991255012,14.5986,102.77,102.73,22.5514]
[1644991257714,14.5986,102.77,102.71,14.8502]
[1644991259012,14.5986,102.77,102.72,24.7562]
[1644991259212,1.37738374,102.79,102.73,112.2481]
[1644991259411,46.8268,102.8,102.74,24.7562]
[1644991259810,46.8268,102.8,102.74,25.0062]
[1644991260410,14.99895324,102.81,102.75,14.5945]
[1644991260612,0.40575324,102.81,102.75,112.4945]
[1644991260813,0.40575324,102.81,102.76,24.7386]
[1644991261015,0.40575324,102.81,102.76,73.3737]
[1644991261216,0.40575324,102.81,102.76,73.6237]
[1644991261812,0.40575324,102.81,102.77,14.5906]
[1644991262213,0.40575324,102.81,102.77,14.8406]
[1644991266921,0.40575324,102.81,102.77,112.4906]
[1644991267120,0.40575324,102.81,102.77,114.85531897]
[1644991267745,0.00575324,102.81,102.78,103.65]
[1644991267947,0.00575324,102.81,102.79,112.2358]
[1644991268347,0.00575324,102.81,102.79,112.4858]
[1644991269246,0.00575324,102.81,102.79,114.85051897]
[1644991273350,1.63743569,102.82,102.79,114.85051897]
[1644991286800,0.52811924,102.83,102.81,97.65]
[1644991287000,0.52811924,102.83,102.82,112.2318]
[1644991287400,0.52811924,102.83,102.82,112.4818]
[1644991287601,0.52811924,102.83,102.82,136.836]
[1644991288102,0.00415152,102.84,102.83,140.17]
[1644991288302,0.00415152,102.84,102.83,154.7488]
[1644991288507,0.00415152,102.84,102.83,171.59351897]
[1644991289305,0.00415152,102.84,102.83,220.40351897]
[1644991289505,0.21120966,102.86,102.85,146.46]
[1644991289704,0.21120966,102.86,102.85,161.2858]
[1644991289905,0.21120966,102.86,102.85,163.65051897]
[1644991292409,0.21120966,102.86,102.85,177.94091897]
[1644991295013,0.00120966,102.86,102.85,177.94091897]
[1644991298616,0.00120966,102.86,102.85,192.17091897]
[1644991300815,0.42120966,102.86,102.85,192.17091897]
[1644991301419,0.00120966,102.86,102.85,192.17091897]
[1644991302220,0.4719359,102.87,102.86,53.0]
[1644991302419,1.48442398,102.89,102.86,164.88]
[1644991302621,1.48442398,102.89,102.88,97.65]
[1644991303118,1.48442398,102.89,102.88,100.26431915]
[1644991303619,4.51662394,102.89,102.88,149.07431915]
[1644991303817,1.48442398,102.89,102.88,149.07431915]
[1644991304817,1.48442398,102.89,102.88,163.64541915]
[1644991305018,1.48442398,102.89,102.88,31.89441915]
[1644991305619,1.48442398,102.89,102.88,17.18541915]
[1644991306619,4.51662394,102.89,102.88,17.18541915]
[1644991308123,4.51662394,102.89,102.88,31.55761915]
[1644991308325,1.48442398,102.89,102.88,31.55761915]
[1644991309024,1.48442398,102.89,102.88,17.18541915]
[1644991313226,4.51662394,102.89,102.88,17.18541915]
[1644991315431,1.48442398,102.89,102.88,31.89291915]
[1644991315632,1.48442398,102.89,102.88,17.18541915]
[1644991327471,1.48442398,102.89,102.88,23.18541915]
[1644991329971,0.9713458,102.9,102.88,37.61301915]
[1644991330171,0.55446984,102.9,102.89,163.65]
[1644991330370,0.00446984,102.9,102.89,126.4499]
[1644991330572,0.00446984,102.9,102.89,153.01181915]
[1644991331971,0.00446984,102.9,102.89,201.82181915]
[1644991335972,1.01702016,102.93,102.89,201.82181915]
[1644991336575,1.01702016,102.93,102.89,28.7999]
[1644991336773,1.01702016,102.93,102.89,14.5699]
[1644991339576,1.01702016,102.93,102.89,14.8199]
[1644991340677,1.01702016,102.93,102.9,2.36417804]
[1644991341077,3.03219996,102.92,102.9,2.36417804]
[1644991355317,3.03219996,102.92,102.9,16.93777804]
[1644991359420,1.01702016,102.93,102.9,16.93777804]
[1644991363224,3.03219996,102.92,102.9,16.93777804]
[1644991374838,3.03219996,102.92,102.9,2.36417804]
[1644991382973,15.59232016,102.93,102.9,2.36417804]
[1644991386576,3.03219996,102.92,102.9,2.36417804]
[1644991393083,17.60889996,102.92,102.9,2.36417804]
[1644991393283,17.60889996,102.92,102.88,2.36417804]
[1644991393483,17.60889996,102.92,102.86,1.3604347]
[1644991393682,129.25889996,102.92,102.85,1.3604347]
[1644991393882,24.6708,102.91,102.83,1.3604347]
[1644991394084,137.69818374,102.91,102.82,1.3604347]
[1644991394482,14.5845,102.89,102.82,1.3604347]
[1644991394881,112.2345,102.89,102.8,454.23879052]
[1644991395085,135.7989,102.89,102.8,454.23879052]
[1644991395283,138.24266979,102.89,102.8,452.87835582]
[1644991395688,135.7989,102.89,102.79,1.3604347]
[1644991395885,135.7989,102.89,102.79,15.9478347]
[1644991396686,111.65,102.88,102.79,1.3604347]
[1644991396887,14.5892,102.86,102.79,1.3604347]
[1644991397089,14.5892,102.86,102.79,0.25]
[1644991397788,14.5892,102.86,102.78,40.1529347]
[1644991397988,14.5892,102.86,102.78,38.7925]
[1644991398588,14.5892,102.86,102.78,24.2037]
[1644991398786,112.2392,102.86,102.78,24.2037]
[1644991398987,112.2392,102.86,102.77,14.3669]
[1644991402291,14.5892,102.86,102.78,97.65]
[1644991402492,14.5849,102.88,102.8,97.65]
[1644991402692,14.5849,102.88,102.8,14.0]
[1644991402893,14.5849,102.88,102.79,16.4858544]
[1644991403094,14.5849,102.88,102.81,2.36417804]
[1644991403995,14.5849,102.88,102.81,17.20007804]
[1644991407314,14.5849,102.88,102.81,14.8359]
[1644991407514,14.5849,102.88,102.81,14.5859]
[1644991407715,14.5849,102.88,102.8,37.3095]
[1644991407919,14.5849,102.88,102.8,37.5595]
[1644991413127,14.5849,102.88,102.8,46.05167804]
[1644991414924,14.5849,102.88,102.8,39.92367804]
[1644991416626,14.5849,102.88,102.8,37.5595]
[1644991416825,37.1863,102.88,102.8,37.5595]
[1644991420931,37.1863,102.88,102.8,37.3095]
[1644991422133,37.1863,102.88,102.8,37.5595]
[1644991423033,37.1863,102.88,102.8,37.3095]
[1644991423233,37.1863,102.88,102.8,37.5595]
[1644991424534,134.8363,102.88,102.8,37.5595]
[1644991424735,134.8363,102.88,102.8,37.3095]
[1644991424959,136.21368374,102.88,102.8,37.3095]
[1644991425137,136.21368374,102.88,102.8,22.7219]
[1644991425335,150.21368374,102.88,102.8,22.7219]
[1644991431341,150.21368374,102.88,102.8,37.3104]
[1644991437245,150.21368374,102.88,102.8,22.7219]
[1644991437448,150.21368374,102.88,102.79,38.5058]
[1644991437645,1.37738374,102.87,102.79,38.7558]
[1644991437853,14.5905,102.85,102.79,38.7558]
[1644991438546,14.5905,102.85,102.79,38.5058]
[1644991438749,14.5905,102.85,102.79,23.9159]
[1644991440447,112.2405,102.85,102.79,23.9159]
[1644991450881,112.2405,102.85,102.78,24.1491]
[1644991451282,149.0701,102.85,102.78,24.1491]
[1644991452482,1.37738374,102.84,102.75,24.6286347]
[1644991452683,112.246,102.82,102.76,22.6831]
[1644991452881,134.7924,102.82,102.76,22.6831]
[1644991453281,134.7924,102.82,102.75,23.2682]
[1644991454880,148.7924,102.82,102.75,23.2682]
[1644991473024,148.7924,102.82,102.76,24.1673]
[1644991474347,148.7924,102.82,102.73,14.5985]
[1644991474546,148.7924,102.82,102.74,23.9536]
[1644991475244,150.16978374,102.82,102.74,23.9536]
[1644991475944,148.7924,102.82,102.74,23.9536]
[1644991476946,150.16978374,102.82,102.74,23.9536]
[1644991477750,165.11418374,102.82,102.74,23.9536]
[1644991480750,1.37738374,102.81,102.74,23.9536]
[1644991480954,112.2511,102.79,102.74,23.9536]
[1644991483755,1.37738374,102.8,102.74,24.2036]
[1644991483951,14.0,102.84,102.74,24.2036]
[1644991483952,1.37738374,102.81,102.75,2.35826484]
[1644991484351,1.37738374,102.82,102.75,2.60826484]
[1644991484552,14.5945,102.81,102.75,2.60826484]
[1644991484751,14.5945,102.81,102.76,2.35826484]
[1644991485052,1.37738374,102.82,102.76,16.95206484]
[1644991485253,1.37738374,102.82,102.76,17.20206484]
[1644991485856,1.37738374,102.83,102.76,17.20206484]
[1644991486454,1.37738374,102.83,102.77,22.5845]
[1644991486855,14.5933,102.82,102.77,22.5845]
[1644991491065,14.5933,102.82,102.77,37.1777]
[1644991494168,14.5933,102.82,102.77,37.4277]
[1644991494368,14.5933,102.82,102.77,39.78596484]
[1644991495067,14.5917,102.83,102.77,39.78596484]
[1644991495471,14.5917,102.83,102.77,45.03896484]
[1644991495669,14.5917,102.83,102.77,142.68896484]
[1644991495868,1.37738374,102.85,102.77,142.68896484]
[1644991496073,4.13215123,102.91,102.77,179.22796484]
[1644991496074,1.37738374,102.86,102.77,179.22796484]
[1644991496371,15.96398374,102.87,102.77,179.22796484]
[1644991496870,15.96398374,102.87,102.79,97.65]
[1644991497070,15.96398374,102.87,102.8,38.2505]
[1644991497269,15.96398374,102.87,102.8,40.60876484]
[1644991497472,15.96398374,102.87,102.81,2.35826484]
[1644991497671,14.5866,102.87,102.81,2.35826484]
[1644991497971,14.5866,102.87,102.81,2.60826484]
[1644991498577,14.5855,102.88,102.81,121.76196484]
[1644991498972,14.5855,102.88,102.82,2.35826484]
[1644991499174,14.5855,102.88,102.82,2.60826484]
[1644991499575,14.5855,102.88,102.83,2.35826484]
[1644991499773,14.5846,102.89,102.82,14.8346]
[1644991499994,14.5846,102.89,102.82,39.2581]
[1644991502978,14.5846,102.89,102.82,24.4235]
[1644991503177,112.2346,102.89,102.82,24.4235]
[1644991503380,113.61198374,102.89,102.82,24.4235]
[1644991503877,15.96198374,102.89,102.82,24.4235]
[1644991504878,113.61198374,102.89,102.82,24.4235]
[1644991505378,127.61198374,102.89,102.82,24.4235]
[1644991505579,1.37738374,102.88,102.82,24.4235]
[1644991505980,14.5903,102.87,102.82,24.4235]
[1644991507607,114.68406979,102.87,102.77,37.1308]
[1644991507807,97.65,102.85,102.78,23.061]
[1644991508008,14.5931,102.83,102.78,23.061]
[1644991513413,112.2431,102.83,102.78,23.061]
[1644991513813,14.5931,102.83,102.78,23.061]
[1644991524418,14.5912,102.84,102.78,23.061]
[1644991524622,14.5912,102.84,102.78,23.311]
[1644991525924,14.5912,102.84,102.78,37.9019]
[1644991526329,14.5897,102.85,102.78,137.91016484]
[1644991526527,1.37738374,102.87,102.78,40.26016484]
[1644991527824,14.5883,102.86,102.78,137.91016484]
[1644991539033,14.587,102.87,102.78,137.91016484]
[1644991546144,14.587,102.87,102.78,40.26016484]
[1644991546744,14.587,102.87,102.78,137.91016484]
[1644991549266,14.587,102.87,102.78,40.26016484]
[1644991551668,15.96438374,102.87,102.78,40.26016484]
[1644991551869,24.2311,102.86,102.78,40.26016484]
[1644991552070,38.8198,102.86,102.78,40.26016484]
[1644991554474,40.19718374,102.86,102.78,40.26016484]
[1644991559378,40.19718374,102.86,102.78,137.91016484]